fUSD/lending_fUSD_20240209
["ID","MTS","AMOUNT","RATE_DAILY","PERIOD"]
[313603483,1707457559805,-48967.90599949,0.00022579,2]
[313603484,1707457578244,-386.40329842,0.00022528,2]
[313603485,1707457578266,-1313.59670158,0.00022579,2]
[313603486,1707457595129,-162.0,0.00022579,2]
[313603487,1707457605995,250.0,0.00022041,2]
[313603488,1707457625097,-0.15546996,0.00022579,2]
[313603489,1707457625119,-150.95,0.00022639,2]
[313603490,1707457625140,-701.71,0.00022639,2]
[313603491,1707457625160,-3028.74439048,0.00022697,2]
[313603492,1707457625181,-300.0,0.000227,2]
[313603493,1707457625201,-10337.6787,0.000227,2]
[313603494,1707457625224,-150.95,0.00022736,2]
[313603495,1707457625245,-295.68851017,0.00022768,2]
[313603496,1707457625265,-366.94083688,0.00022798,2]
[313603497,1707457625286,-203.56855195,0.00022798,2]
[313603498,1707457625306,-267.99076631,0.00022798,2]
[313603499,1707457625338,-274.97263282,0.00022798,2]
[313603500,1707457625362,-521.69672597,0.00022798,2]
[313603501,1707457625388,-212.73792894,0.00022798,2]
[313603502,1707457625410,-1652.6498,0.00022798,2]
[313603503,1707457625431,-67752.3263,0.000228,2]
[313603504,1707457625451,-681.7586,0.000228,2]
[313603505,1707457625473,-32316.2222,0.000228,2]
[313603506,1707457625494,-642.7807,0.000228,2]
[313603507,1707457625514,-1000.0,0.000228,2]
[313603508,1707457625536,-150.95,0.00022832,2]
[313603509,1707457625558,-1000.0,0.00022898,2]
[313603510,1707457625579,-358.1575,0.00022899,2]
[313603511,1707457625601,-2280.58945347,0.000229,2]
[313603512,1707457630087,-223.39341405,0.00022898,3]
[313603513,1707457630108,-60116.98374653,0.000229,2]
[313603514,1707457630130,-487.625,0.000229,2]
[313603515,1707457630154,-1823.41736352,0.000229,2]
[313603516,1707457630175,-499.99,0.000229,2]
[313603517,1707457630199,-7040.96102341,0.000229,2]
[313603518,1707457651086,-206.0691,0.000227,2]
[313603519,1707457651106,-386.40329842,0.00022899,2]
[313603520,1707457651127,-544.97703337,0.000229,2]
[313603521,1707457651148,-4415.99509175,0.000229,2]
[313603522,1707457737608,226.17,0.00020132,2]
[313603523,1707457738013,226.17,0.00022396,2]
[313603526,1707457805925,840.0,0.00021945,2]
[313603527,1707457813808,424.84,0.00021945,2]
[313603529,1707457831603,-386.40329842,0.00022511,2]
[313603530,1707457831613,-222.06,0.00022512,2]
[313603531,1707457831623,-159.3716076,0.000228,2]
[313603532,1707457831633,-253.22450956,0.000228,2]
[313603533,1707457831645,-564.28815814,0.000228,2]
[313603534,1707457831661,-9182.4873323,0.000228,2]
[313603535,1707457831671,-159.37160755,0.00022807,2]
[313603536,1707457831680,-159.37160755,0.00022814,2]
[313603537,1707457831690,-159.37160755,0.00022821,2]
[313603538,1707457831700,-734.94,0.00022822,2]
[313603539,1707457831710,-159.37160755,0.00022829,2]
[313603540,1707457831719,-159.37160755,0.00022836,2]
[313603541,1707457831728,-159.37160755,0.00022843,2]
[313603542,1707457831737,-3242.43,0.00022843,2]
[313603543,1707457831746,-3587.21,0.00022843,2]
[313603544,1707457831755,-159.37160755,0.0002285,2]
[313603545,1707457831764,-159.37160755,0.00022857,2]
[313603546,1707457831775,-159.37160755,0.00022864,2]
[313603547,1707457831785,-159.37160755,0.00022871,2]
[313603548,1707457831798,-159.37160755,0.00022879,2]
[313603549,1707457831808,-159.37160755,0.00022886,2]
[313603550,1707457831817,-159.37160755,0.00022893,2]
[313603551,1707457831829,-150.0,0.00022899,2]
[313603552,1707457831839,-730.96,0.000229,2]
[313603553,1707457831848,-730.77,0.000229,2]
[313603554,1707457831858,-584.00490825,0.000229,2]
[313603555,1707457831868,-961.13927632,0.000229,2]
[313603556,1707457831880,-1522.8374158,0.000229,2]
[313603557,1707457831890,-443.57165655,0.000229,2]
[313603558,1707457831901,-159.37160755,0.000229,2]
[313603559,1707457831915,-1100.1342903,0.000229,2]
[313603560,1707457831924,-4308.7634696,0.000229,2]
[313603561,1707457831934,-248.39639764,0.000229,2]
[313603562,1707457831944,-150.95,0.00022928,2]
[313603563,1707457831953,-200.0,0.00022973,2]
[313603564,1707457831962,-214.1053981,0.00022975,2]
[313603565,1707457831971,-171.00997525,0.0002299,2]
[313603566,1707457831980,-171.00997525,0.0002299,2]
[313603567,1707457831989,-515.28,0.00022995,2]
[313603568,1707457831998,-161.31636551,0.00022996,2]
[313603569,1707457832007,-174.23415072,0.00022998,3]
[313603570,1707457832016,-458.61442053,0.00022998,2]
[313603571,1707457832025,-1088.68146673,0.00022998,2]
[313603572,1707457832034,-308.48147351,0.00022998,2]
[313603573,1707457832043,-205.48859452,0.00022998,2]
[313603574,1707457832052,-179.21376334,0.00022998,2]
[313603575,1707457832061,-236.5634374,0.00022998,2]
[313603576,1707457832071,-155.70566708,0.00022998,2]
[313603577,1707457832080,-254.49890436,0.00022998,2]
[313603578,1707457832089,-500.0,0.00022998,2]
[313603579,1707457832098,-771.4265657,0.00022998,2]
[313603580,1707457832107,-512.29615867,0.00022998,2]
[313603581,1707457832117,-386.98501335,0.00022998,2]
[313603582,1707457832126,-2329.76851036,0.00022998,2]
[313603583,1707457832135,-1860.49425606,0.00022998,2]
[313603584,1707457832145,-231.1847551,0.00022998,2]
[313603585,1707457832154,-1048.98717377,0.00022998,2]
[313603586,1707457832164,-400.0,0.00022998,2]
[313603587,1707457832174,-179.54092264,0.00022998,2]
[313603588,1707457832183,-568.55229512,0.00022998,2]
[313603589,1707457832193,-599.11198548,0.00022998,2]
[313603590,1707457832202,-191.49315037,0.00022998,2]
[313603591,1707457832211,-2117.86538818,0.00022998,2]
[313603592,1707457832220,-157.18120035,0.00022998,2]
[313603593,1707457832230,-204.4270791,0.00022998,2]
[313603594,1707457832239,-4110.43101479,0.00022998,2]
[313603595,1707457832248,-2142.13076352,0.00022998,2]
[313603596,1707457832257,-200.75901006,0.00022998,2]
[313603597,1707457832266,-445.55576734,0.00022998,2]
[313603598,1707457832275,-4621.26502579,0.00022998,2]
[313603599,1707457832284,-11835.12459729,0.00022998,2]
[313603600,1707457832294,-245.12228435,0.00022998,2]
[313603601,1707457832303,-172.8399001,0.00022998,2]
[313603602,1707457832312,-1145.23429919,0.00022999,2]
[313603603,1707457832322,-11233.50367236,0.00022999,2]
[313603604,1707457832331,-442.82261392,0.00022999,2]
[313603605,1707457832340,-500.0,0.00022999,2]
[313603606,1707457832350,-350.0,0.00022999,2]
[313603607,1707457832359,-278.72225259,0.00022999,2]
[313603608,1707457832372,-170.66520933,0.00022999,2]
[313603609,1707457832380,-351.38522748,0.00022999,2]
[313603610,1707457832390,-200.0,0.00022999,2]
[313603611,1707457832399,-408.98531189,0.00022999,2]
[313603612,1707457832408,-260.53310642,0.00023,3]
[313603613,1707457832417,-240.7757676,0.00023,3]
[313603614,1707457832427,-835.76707683,0.00023,2]
[313603615,1707457832439,-21610.05619222,0.00023,2]
[313603616,1707457832467,-9839.8133274,0.00023,2]
[313603617,1707457832480,-9753.0093849,0.00023,2]
[313603618,1707457832491,-389.81167713,0.00023,2]
[313603619,1707457832503,-6565.78981454,0.00023,2]
[313603620,1707457832515,-4696.71243207,0.00023,2]
[313603621,1707457832526,-346.80171835,0.00023,2]
[313603622,1707457832560,-633.39998735,0.00023,2]
[313603623,1707457832595,-47674.74172912,0.00023,2]
[313603625,1707457837600,-302.4670688,0.00022998,2]
[313603626,1707457837610,-33126.49554197,0.00023,2]
[313603631,1707457837657,-359233.7659653,0.00023,2]
[313603633,1707457837669,-1257.66957467,0.00023,2]
[313603635,1707457837681,-843.85681644,0.00023,2]
[313603643,1707457837979,-417.02085171,0.00023,2]
[313603851,1707457840937,-45386.29815672,0.00023,2]
[313603852,1707457841123,-10483.0,0.00023,2]
[313603853,1707457841155,-226932.6191883,0.00023,2]
[313603854,1707457841171,-826.11072949,0.00023,2]
[313603868,1707457842701,-347.18442988,0.00023,2]
[313603869,1707457843065,-18054.31705623,0.00023,2]
[313603870,1707457843077,-2011.42841198,0.00023,2]
[313603871,1707457843088,-368.53269329,0.00023,2]
[313603872,1707457843501,-400.30481951,0.00023,2]
[313603873,1707457843513,-405.20000741,0.00023,2]
[313603874,1707457843524,-500.0,0.00023,2]
[313603895,1707457845722,-342.81727514,0.00022999,2]
[313603897,1707457845731,-943.45768475,0.00023,2]
[313603931,1707457848224,-194250.14760335,0.00023,2]
[313603932,1707457848260,-70192.37014309,0.00023,2]
[313603933,1707457848275,-14906.53778964,0.00023,2]
[313603936,1707458063093,12078.71,0.00022359,2]
[313603937,1707458111982,174.65,0.00022256,2]
[313603938,1707458159732,222.06,0.00022335,2]
[313603939,1707458203794,219.71,0.00020332,2]
[313603940,1707458273374,328.0,0.00021888,2]
[313603941,1707458275073,558.76,0.00022172,2]
[313603942,1707458485613,152.56,0.00022418,2]
[313603943,1707458592898,250.0,0.0002206,2]
[313603944,1707458647137,-219.71,0.00022596,2]
[313603945,1707458647160,-152.56,0.00022612,2]
[313603946,1707458647180,-716.27,0.00022758,2]
[313603947,1707458647201,-1889.27771131,0.00022788,2]
[313603948,1707458647222,-150.0,0.00022799,2]
[313603949,1707458647243,-723.42,0.00022799,2]
[313603950,1707458647264,-728.57,0.00022799,2]
[313603951,1707458647285,-713.77,0.00022799,2]
[313603952,1707458647305,-710.03,0.00022799,2]
[313603953,1707458647326,-729.7,0.000228,2]
[313603954,1707458647346,-716.64,0.000228,2]
[313603955,1707458647366,-499.99,0.000228,2]
[313603956,1707458647386,-4130.2348,0.000228,2]
[313603957,1707458647407,-727.48,0.000228,2]
[313603958,1707458647427,-712.88,0.000228,2]
[313603959,1707458647448,-152.56,0.00022807,2]
[313603960,1707458647468,-19621.0867,0.00022899,2]
[313603961,1707458647488,-5000.0,0.000229,2]
[313603962,1707458647508,-393.02274888,0.000229,2]
[313603963,1707458647528,-2937.10411449,0.000229,2]
[313603964,1707458647548,-81605.1543,0.000229,2]
[313603965,1707458647568,-398.3282,0.000229,2]
[313603966,1707458647590,-197.98396533,0.000229,2]
[313603967,1707458647610,-3900.13,0.000229,2]
[313603968,1707458647629,-344.4071755,0.000229,2]
[313603969,1707458647650,-723.22,0.00022952,2]
[313603970,1707458647671,-415.55639454,0.00022998,3]
[313603971,1707458647691,-1047.52615169,0.00022998,2]
[313603972,1707458647712,-586.11429854,0.00022998,2]
[313603973,1707458647732,-518.51970054,0.00022998,2]
[313603974,1707458647753,-345.6798002,0.00022998,2]
[313603975,1707458647773,-252.0558907,0.00022998,2]
[313603976,1707458647794,-172283.88003458,0.00022999,2]
[313603977,1707458647814,-1695757.1380137,0.00023,2]
[313603978,1707458658301,-2000000.0,0.00023,2]
[313603979,1707458671638,197.73,0.00021841,2]
[313603980,1707458687626,-247828.27762364,0.00023,2]
[313603981,1707458687648,-572186.82892874,0.00023,2]
[313603982,1707458687669,-179984.89344762,0.00023,2]
[313603983,1707458706142,-723.39,0.000229,2]
[313603984,1707458706164,-5000.0,0.000229,2]
[313603985,1707458706186,-377294.71853679,0.00023,2]
[313603986,1707458706209,-401623.27756897,0.00023,2]
[313603987,1707458706232,-215358.61389424,0.00023,2]
[313603988,1707458913913,206.0,0.00022107,2]
[313604002,1707459012662,150.0,0.00022502,2]
[313604010,1707459031849,-717.29,0.000229,2]
[313604011,1707459031861,-453.33277334,0.000229,2]
[313604012,1707459031876,-279.95722666,0.000229,2]
[313604013,1707459031886,-245.05967407,0.000229,2]
[313604014,1707459031909,-1086.69258254,0.000229,2]
[313604035,1707459032591,-512.31,0.000229,2]
[313604036,1707459032607,-2160.67398143,0.000229,2]
[313604037,1707459032634,-689.30241408,0.000229,2]
[313604042,1707459037847,-305.96134788,0.000229,2]
[313604043,1707459037857,-210.0465756,0.00022998,2]
[313604044,1707459037866,-300.0,0.00022999,2]
[313604045,1707459037876,-150.0,0.00022999,2]
[313604046,1707459037885,-733.47,0.00022999,2]
[313604047,1707459037895,-450.68772991,0.00023,2]
[313604048,1707459037915,-281.84227009,0.00023,2]
[313604049,1707459037925,-350.62634697,0.00023,2]
[313604050,1707459037938,-364.22365303,0.00023,2]
[313604051,1707459037948,-407.80195975,0.00023,2]
[313604052,1707459038659,-426.32079683,0.00023,2]
[313604053,1707459038671,-600.0,0.00023,2]
[313604054,1707459038684,-477.66470947,0.00023,2]
[313604055,1707459038880,-45086.15527693,0.00023,2]
[313604056,1707459038987,-6177.8737977,0.00023,2]
[313604057,1707459038999,-3074.19224259,0.00023,2]
[313604088,1707459040441,-793.57873986,0.00023,2]
[313604089,1707459040581,-340.11814316,0.00023,2]
[313604090,1707459040611,-251.04163912,0.00023,2]
[313604091,1707459041369,-178126.0473258,0.00023,2]
[313604092,1707459041380,-372.03993255,0.00023,2]
[313604126,1707459044422,-2390.5060322,0.00023,2]
[313604127,1707459044434,-4910.53905162,0.00023,2]
[313604128,1707459044476,-651.01243477,0.00023,2]
[313604129,1707459044488,-291.23162982,0.00023,2]
[313604130,1707459044499,-432.0,0.00023,2]
[313604131,1707459044533,-4155.03937733,0.00023,2]
[313604132,1707459044544,-572.09977409,0.00023,2]
[313604133,1707459044556,-702.38304042,0.00023,2]
[313604134,1707459044567,-1525.57672096,0.00023,2]
[313604135,1707459044695,-196343.68327,0.00023,2]
[313604136,1707459044707,-4474.55107622,0.00023,2]
[313604137,1707459044719,-260.12482168,0.00023,2]
[313604138,1707459044731,-1210.36080118,0.00023,2]
[313604144,1707459046054,-181529.43756675,0.00023,2]
[313604145,1707459046066,-51802.47515484,0.00023,2]
[313604146,1707459046077,-420.16805019,0.00023,2]
[313604147,1707459046093,-11290.3061198,0.00023,2]
[313604148,1707459046120,-3778.12508056,0.00023,2]
[313604149,1707459046180,-16399.81234908,0.00023,2]
[313604165,1707459148406,187.84,0.00021825,2]
[313604166,1707459632554,178.44,0.00021512,2]
[313604167,1707460125211,169.51,0.00021434,2]
[313604173,1707460226925,184.34,0.00022376,2]
[313604179,1707460232108,-156.09926764,0.000228,2]
[313604180,1707460232120,-156.09926764,0.00022817,2]
[313604181,1707460232129,-156.09926764,0.00022833,2]
[313604182,1707460232139,-156.09926764,0.0002285,2]
[313604183,1707460232148,-156.09926764,0.00022867,2]
[313604184,1707460232158,-156.09926764,0.00022883,2]
[313604185,1707460232167,-163.55491601,0.00022898,2]
[313604186,1707460232176,-925.23679474,0.00022898,2]
[313604187,1707460232188,-601.86408468,0.00022898,2]
[313604188,1707460232197,-902.56929306,0.00022899,2]
[313604189,1707460232206,-150.0,0.00022899,2]
[313604190,1707460232215,-279.80782405,0.000229,2]
[313604191,1707460232239,-2058.15495185,0.000229,2]
[313604192,1707460232258,-284.49703418,0.000229,2]
[313604193,1707460232270,-5372.61664211,0.000229,2]
[313604194,1707460232286,-31949.99999781,0.000229,2]
[313604202,1707460238033,-636.64701375,0.000229,2]
[313604210,1707460240667,-18822.61513625,0.000229,2]
[313604211,1707460240677,-156.09926764,0.000229,2]
[313604212,1707460240687,-5000.0,0.000229,2]
[313604213,1707460240697,-155.0,0.00022999,2]
[313604214,1707460240707,-1724.96551771,0.00022999,2]
[313604215,1707460240717,-36788.23425779,0.00023,2]
[313604216,1707460240730,-5318.0,0.00023,2]
[313604234,1707460243010,-937.480368,0.00023,2]
[313604236,1707460243022,-9484.42622168,0.00023,2]
[313604239,1707460243071,-1392.89706308,0.00023,2]
[313604240,1707460243082,-286.94092014,0.00023,2]
[313604241,1707460243094,-5426.1963071,0.00023,2]
[313604242,1707460243105,-796.08768475,0.00023,2]
[313604243,1707460243117,-2278.81377185,0.00023,2]
[313604244,1707460243129,-8080.28742592,0.00023,2]
[313604245,1707460243161,-636.88921262,0.00023,2]
[313604246,1707460243174,-1560.0,0.00023,2]
[313604247,1707460243186,-2172.25771036,0.00023,2]
[313604248,1707460243198,-6855.90067227,0.00023,2]
[313604249,1707460243284,-773.47083499,0.00023,2]
[313604250,1707460243297,-4824.07128542,0.00023,2]
[313604251,1707460243310,-4143.46197696,0.00023,2]
[313604252,1707460243379,-666.41,0.00023,2]
[313604253,1707460243391,-338.20311739,0.00023,2]
[313604254,1707460243405,-926.38502705,0.00023,2]
[313604255,1707460243426,-415.21587112,0.00023,2]
[313604256,1707460243438,-836.39147061,0.00023,2]
[313604285,1707460246138,-1500.0,0.00023,2]
[313604287,1707460246304,-8533.17013857,0.00023,2]
[313604292,1707460354475,206.0,0.00022318,2]
[313604293,1707460468321,1852.42,0.0002219,2]
[313604294,1707460490591,249.97,0.00022164,2]
[313604295,1707460507403,1000.0,0.00022165,2]
[313604296,1707460511431,150.0,0.00022165,2]
[313604297,1707460516591,2000.0,0.00022165,2]
[313604298,1707460571922,166.94,0.00022153,2]
[313604299,1707460638869,197.23,0.00020205,2]
[313604300,1707460639079,197.23,0.00022469,2]
[313604301,1707460680220,259.72,0.00022123,2]
[313604302,1707460684040,250.0,0.00022123,2]
[313604303,1707460686045,23900.0,0.00022125,2]
[313604304,1707460688079,154.77,0.00022294,2]
[313604305,1707460688296,154.77,0.00022372,2]
[313604306,1707460688528,154.77,0.00022449,2]
[313604307,1707460726725,184.4,0.00021971,2]
[313604308,1707460733391,1011.28,0.00021975,2]
[313604309,1707460773043,231.29,0.0002197,2]
[313604310,1707460779902,690.53,0.0002197,2]
[313604311,1707460855990,299.6,0.0002197,10]
[313604312,1707460856186,299.6,0.00022509,10]
[313604313,1707460883185,500.0,0.00021952,2]
[313604314,1707460995111,200.0,0.00021938,2]
[313604315,1707461034543,11471.62,0.00021942,2]
[313604413,1707461108419,1165.26732318,0.00022473,2]
[313604430,1707461123166,177.5,0.00020037,2]
[313604431,1707461123355,177.5,0.00022301,2]
[313604433,1707461153800,154.05,0.00022098,2]
[313604434,1707461154008,154.05,0.00022175,2]
[313604435,1707461154221,154.05,0.00022252,2]
[313604436,1707461154851,154.05,0.00022328,2]
[313604437,1707461154907,154.05,0.00022405,2]
[313604438,1707461155019,154.05,0.00022482,2]
[313604439,1707461200700,184.34,0.0002192,2]
[313604440,1707461200791,842.73,0.0002192,2]
[313604441,1707461221493,300.0,0.00022425,2]
[313604442,1707461269419,250.0,0.0002192,2]
[313604443,1707461270135,11596.28,0.0002192,2]
[313604444,1707461301331,179.76,0.00021944,10]
[313604445,1707461301549,179.76,0.00022481,10]
[313604446,1707461382143,158.05873982,0.00022408,2]
[313604447,1707461387148,158.05873982,0.0002249,2]
[313604461,1707461432196,-285.80001639,0.00022506,2]
[313604462,1707461432206,-3159.13814169,0.00022507,2]
[313604463,1707461432216,-1045.1529,0.00022508,2]
[313604464,1707461432225,-121.30894192,0.00022559,2]
[313604465,1707461432256,-32.74105808,0.00022559,2]
[313604466,1707461432266,-158.05873982,0.00022572,2]
[313604467,1707461432277,-167.58,0.00022611,2]
[313604468,1707461432287,-154.05,0.00022635,2]
[313604469,1707461432298,-158.05873982,0.00022654,2]
[313604470,1707461432307,-154.05,0.00022712,2]
[313604471,1707461432317,-158.05873982,0.00022736,2]
[313604472,1707461432327,-295.68851017,0.00022766,2]
[313604473,1707461432337,-156.3455524,0.00022766,2]
[313604474,1707461432347,-154.05,0.00022789,2]
[313604475,1707461432356,-234.1,0.00022798,2]
[313604476,1707461432365,-347.86,0.00022798,2]
[313604477,1707461432375,-199.46527393,0.00022798,2]
[313604478,1707461432384,-150.0,0.00022799,2]
[313604479,1707461432394,-495.6951,0.000228,2]
[313604480,1707461432403,-430.9294,0.000228,2]
[313604481,1707461432413,-1247.45526918,0.000228,2]
[313604482,1707461432422,-32316.2222,0.000228,2]
[313604483,1707461432431,-1000.0,0.000228,2]
[313604484,1707461432440,-10337.6855,0.000228,2]
[313604485,1707461432449,-487.625,0.000228,2]
[313604486,1707461432459,-67752.3263,0.000228,2]
[313604487,1707461432468,-159.55008884,0.000228,2]
[313604488,1707461432478,-1000.0,0.000228,2]
[313604489,1707461432487,-681.7586,0.000228,2]
[313604490,1707461432497,-1652.6498,0.000228,2]
[313604491,1707461432506,-206.0691,0.000228,2]
[313604492,1707461432516,-642.7807,0.000228,2]
[313604493,1707461432526,-158.05873982,0.00022818,2]
[313604494,1707461432535,-150.99,0.00022832,2]
[313604495,1707461432544,-499.99,0.00022849,2]
[313604496,1707461432553,-154.05,0.00022866,2]
[313604497,1707461432563,-156.44923431,0.00022884,2]
[313604498,1707461432573,-1286.27000001,0.00022898,2]
[313604499,1707461432583,-722.09,0.00022898,2]
[313604500,1707461432592,-8040.815,0.000229,2]
[313604501,1707461432602,-78104.9506,0.000229,2]
[313604503,1707461432612,-1823.41736352,0.000229,2]
[313604504,1707461432621,-5000.0,0.000229,2]
[313604505,1707461432631,-632.16150475,0.000229,2]
[313604506,1707461432640,-6327.67253133,0.000229,2]
[313604507,1707461432835,-745.35826249,0.000229,2]
[313604508,1707461432848,-544.127513,0.000229,2]
[313604509,1707461432860,-1833.3,0.000229,2]
[313604510,1707461432878,-70941.09824289,0.000229,2]
[313604511,1707461432890,-1103.40950948,0.000229,2]
[313604512,1707461433021,-269.91829043,0.000229,2]
[313604520,1707461438315,-701.71,0.00022736,2]
[313604521,1707461438325,-1983.34400003,0.000229,2]
[313604620,1707461443224,-262.4952,0.000229,2]
[313604627,1707461443281,-2306.1,0.000229,2]
[313604640,1707461443394,-1014.28560011,0.000229,2]
[313604648,1707461443462,-863.75805204,0.000229,2]
[313604722,1707461446231,-382.51727014,0.000229,2]
[313604723,1707461446341,-86515.60552806,0.000229,2]
[313604724,1707461446352,-158.05873982,0.000229,2]
[313604725,1707461446362,-1247.45526917,0.000229,2]
[313604726,1707461446371,-154.05,0.00022942,2]
[313604727,1707461446382,-223.39341405,0.00022996,3]
[313604728,1707461446391,-274.97263282,0.00022996,2]
[313604729,1707461446401,-521.69672597,0.00022996,2]
[313604730,1707461446410,-267.99076631,0.00022996,2]
[313604731,1707461446420,-203.56855195,0.00022996,2]
[313604732,1707461446430,-366.94083688,0.00022996,2]
[313604733,1707461446440,-212.73792894,0.00022996,2]
[313604734,1707461446449,-206.27153266,0.00022997,2]
[313604735,1707461446459,-155.33750063,0.00022998,2]
[313604736,1707461446470,-2795.69072813,0.00022998,2]
[313604737,1707461446483,-196.71456252,0.00022998,2]
[313604738,1707461446493,-51228.68571419,0.00022998,2]
[313604739,1707461446503,-4281.27362073,0.00022998,2]
[313604740,1707461446513,-3898.1862566,0.00022998,2]
[313604741,1707461446523,-218.6889417,0.00022998,2]
[313604742,1707461446532,-227.1309197,0.00022998,2]
[313604743,1707461446542,-205.94050564,0.00022999,2]
[313604744,1707461446552,-302.1607977,0.00022999,2]
[313604745,1707461446562,-11273.72787377,0.00022999,2]
[313604747,1707461446572,-153.60594607,0.00022999,2]
[313604748,1707461446582,-162119.9790285,0.00023,2]
[313604749,1707461446592,-46127.31207614,0.00023,2]
[313604750,1707461446605,-824.70516459,0.00023,2]
[313604751,1707461446627,-34925.62231775,0.00023,2]
[313604752,1707461446683,-13885.0146,0.00023,2]
[313604753,1707461457522,203.38673764,0.0002249,5]
[313604757,1707461545325,1218.37,0.00022298,2]
[313604758,1707461579547,230.35,0.00022373,2]
[313604759,1707461584305,5828.72,0.00022328,2]
[313604760,1707461588926,562.86462881,0.00022999,5]
[313604761,1707461617540,263.74,0.00022336,2]
[313604765,1707461660113,264.71552263,0.00022,2]
[313604766,1707461666022,974.48,0.00022303,2]
[313604767,1707461668338,567.22,0.00022303,2]
[313604768,1707461670376,190.53334426,0.00022501,2]
[313604769,1707461673426,178.31,0.00022346,2]
[313604770,1707461716337,194.08,0.00020416,2]
[313604771,1707461742885,158.77778689,0.00022501,2]
[313604772,1707461751112,2725.80986091,0.00022502,5]
[313604773,1707461761783,151.83299161,0.00022,2]
[313604774,1707461778160,179.76,0.00022186,10]
[313604775,1707461801403,3403.58555179,0.00022168,2]
[313604776,1707461801430,17889.33444821,0.00022168,2]
[313604777,1707461836003,358.32340856,0.000225,2]
[313604778,1707461907695,160.0,0.00022184,2]
[313604779,1707462061270,354.08,0.00022,2]
[313604780,1707462069704,500.0,0.00022193,2]
[313604781,1707462118535,153.7,0.000224,2]
[313604782,1707462123964,206.0,0.00021504,2]
[313604783,1707462177057,184.37,0.0002034,2]
[313604784,1707462184149,166.94,0.00022215,2]
[313604785,1707462231786,184.34,0.00022164,2]
[313604786,1707462270258,812.06,0.00022164,2]
[313604787,1707462302019,2191.37627791,0.00021942,2]
[313604788,1707462318006,2191.37627791,0.00021942,2]
[313604789,1707462370483,159.24,0.00021966,10]
[313604790,1707462370690,159.24,0.00022504,10]
[313604791,1707462393752,206.0,0.00021504,2]
[313604792,1707462405589,872.0,0.00021959,2]
[313604794,1707462545181,11471.62,0.00021964,2]
[313604799,1707462557892,500.0,0.00021964,2]
[313604800,1707462568882,690.53,0.00021964,2]
[313604801,1707462568958,249.97,0.00021964,2]
[313604805,1707462596567,154.1,0.00022176,2]
[313604806,1707462596777,154.1,0.00022341,2]
[313604809,1707462619849,-158.77778689,0.00022505,2]
[313604810,1707462619883,-154.1,0.00022506,2]
[313604811,1707462619919,-184.37,0.00022604,2]
[313604812,1707462619953,-655.79791732,0.00022631,2]
[313604813,1707462619998,-154.1,0.00022671,2]
[313604814,1707462620034,-157.22228642,0.000227,2]
[313604815,1707462620070,-157.22228639,0.00022733,2]
[313604816,1707462620106,-157.22228639,0.00022767,2]
[313604817,1707462620140,-248.33395542,0.00022768,2]
[313604818,1707462620178,-150.0,0.00022798,2]
[313604819,1707462620212,-33917.86869941,0.00022799,2]
[313604820,1707462620236,-158.77778689,0.00022799,2]
[313604821,1707462620253,-154.1,0.00022799,2]
[313604822,1707462620269,-184.37,0.00022799,2]
[313604823,1707462620281,-655.79791732,0.00022799,2]
[313604824,1707462620292,-154.1,0.00022799,2]
[313604825,1707462620316,-157.22228642,0.00022799,2]
[313604826,1707462620335,-157.22228639,0.00022799,2]
[313604827,1707462620346,-157.22228639,0.00022799,2]